bitfinex-derivatives/quotes_ETHF0:USTF0_20250911
["timestamp","ask_amount","ask_price","bid_price","bid_amount"]
[1757600626962,1.81793972,4408.9,4407.7,0.3579]
[1757600627154,0.60307351,4408.8,4407.7,0.3579]
[1757600627349,0.60307351,4408.8,4407.6,0.9203]
[1757600627350,0.60307351,4408.7,4407.6,0.9203]
[1757600627561,1.21486621,4408.6,4407.6,0.9203]
[1757600627758,1.21486621,4408.2,4407.1,0.3579]
[1757600627958,1.21486621,4408.0,4407.1,0.3579]
[1757600628157,0.60307351,4408.0,4407.1,0.3579]
[1757600628460,0.60307351,4407.9,4407.2,0.146]
[1757600628661,1.21486621,4407.7,4406.7,0.3579]
[1757600628856,1.21486621,4407.7,4407.6,0.3579]
[1757600629063,0.60307351,4407.7,4407.6,0.3579]
[1757600629462,4.60307351,4407.7,4407.6,0.3579]
[1757600629670,0.60307351,4407.7,4407.6,0.3579]
[1757600630266,32.676,4408.5,4408.0,0.1368]
[1757600630468,0.60293471,4408.4,4408.0,0.1368]
[1757600630663,0.60293471,4408.3,4408.0,0.1368]
[1757600630962,0.60293471,4408.2,4408.1,0.3579]
[1757600631266,0.60293471,4408.2,4408.0,0.1368]
[1757600631468,4.60293471,4408.1,4408.0,0.4947]
[1757600631666,0.60293471,4408.1,4408.0,0.4947]
[1757600631866,4.60293471,4408.1,4408.0,0.4947]
[1757600632766,4.60293471,4408.1,4408.0,0.1368]
[1757600632967,4.60293471,4408.1,4408.0,0.4947]
[1757600636264,4.84093471,4408.1,4408.0,0.4947]
[1757600636674,4.84093471,4408.1,4407.5,0.1368]
[1757600636868,0.60293471,4408.0,4407.5,0.1368]
[1757600637067,4.60293471,4408.0,4407.5,0.1368]
[1757600637266,0.60293471,4407.9,4407.5,0.1368]
[1757600637473,0.60293471,4407.9,4407.5,0.5019]
[1757600637773,0.60293471,4407.9,4407.6,0.3651]
[1757600637968,0.60293471,4407.9,4407.5,0.1368]
[1757600638163,0.60293471,4407.9,4407.5,0.5019]
[1757600638474,0.60293471,4407.9,4407.6,0.3651]
[1757600639171,0.78418678,4407.9,4407.6,0.3651]
[1757600639376,0.18125207,4407.9,4407.5,0.1368]
[1757600639566,4.0,4408.0,4407.5,0.1368]
[1757600639965,4.0,4408.0,4407.6,0.3651]
[1757600640176,0.61681544,4407.9,4407.6,0.3651]
[1757600640370,0.238,4407.8,4407.6,0.3651]
[1757600640571,0.238,4407.7,4407.6,0.3651]
[1757600641976,0.18559908,4408.2,4408.0,0.141]
[1757600642173,0.85457178,4408.1,4408.0,0.141]
[1757600642472,3.767,4411.2,4408.0,0.141]
[1757600642473,0.1837516,4409.2,4409.1,0.3651]
[1757600642671,0.238,4409.2,4409.1,0.3651]
[1757600642867,0.85455422,4409.2,4409.1,0.3651]
[1757600643870,0.85455422,4409.2,4408.5,0.141]
[1757600643871,4.85455422,4409.2,4408.5,0.141]
[1757600644176,4.61655422,4409.1,4408.5,0.141]
[1757600644372,0.61655422,4409.0,4408.5,0.141]
[1757600644570,0.61655422,4408.9,4408.5,0.141]
[1757600644773,4.61655422,4408.9,4408.5,0.141]
[1757600645076,0.61655422,4408.8,4408.5,0.141]
[1757600645781,4.61655422,4408.7,4408.0,0.141]
[1757600645975,0.238,4409.0,4407.5,0.1368]
[1757600645976,0.85455422,4408.6,4407.5,0.1368]
[1757600646174,0.61655422,4408.5,4407.5,0.1368]
[1757600646379,0.61655422,4408.4,4407.6,0.3651]
[1757600646579,0.61655422,4408.3,4407.6,0.3651]
[1757600646772,0.61655422,4408.2,4408.0,0.141]
[1757600646978,0.238,4408.1,4408.0,0.5061]
[1757600647383,0.85473219,4408.1,4408.0,0.5061]
[1757600648381,8.848,4410.4,4408.0,0.5061]
[1757600648382,1.60485366,4410.2,4409.6,0.3651]
[1757600648581,0.3719,4411.1,4409.6,0.3651]
[1757600648885,0.1447,4411.0,4409.7,40.8]
[1757600649175,0.4099,4410.9,4409.8,0.28475131]
[1757600649482,0.4099,4410.9,4409.9,0.28475131]
[1757600649684,0.1447,4410.5,4410.0,0.28475131]
[1757600649975,0.1447,4410.5,4410.1,0.28475131]
[1757600650179,0.1447,4410.5,4410.2,0.28475131]
[1757600650180,0.3719,4410.4,4410.2,0.28475131]
[1757600650385,0.3719,4410.2,4408.1,0.22679999]
[1757600650572,0.3719,4410.2,4408.2,0.33635615]
[1757600650773,0.048,4410.3,4408.3,41.13635615]
[1757600650976,0.3719,4410.2,4408.4,0.33635615]
[1757600651180,0.3719,4409.9,4408.5,0.33635615]
[1757600651374,0.3719,4409.9,4408.6,0.50696093]
[1757600651576,0.3719,4409.9,4408.7,0.50696093]
[1757600651875,0.3719,4409.9,4408.8,0.50696093]
[1757600652075,0.3329,4409.9,4408.9,0.54596093]
[1757600652277,0.3329,4409.9,4409.0,0.50696093]
[1757600652477,0.3329,4409.9,4409.1,0.50696093]
[1757600652680,0.3329,4409.9,4409.2,0.50696093]
[1757600652983,0.3329,4409.9,4409.3,0.50696093]
[1757600653184,0.1447,4410.0,4409.4,0.50696093]
[1757600653383,0.1897,4410.0,4409.5,0.50696093]
[1757600653583,0.1897,4410.0,4409.6,0.50696093]
[1757600653784,0.1897,4410.0,4409.7,0.50696093]
[1757600654081,0.3719,4409.9,4409.8,0.50696093]
[1757600654881,0.1447,4410.5,4409.8,4.50696093]
[1757600655082,0.3719,4410.4,4409.9,0.50696093]
[1757600655274,0.3719,4410.4,4410.1,0.039]
[1757600655484,0.4529,4410.9,4410.3,0.039]
[1757600655683,0.3719,4410.8,4410.4,0.54596093]
[1757600655885,0.5166,4411.0,4410.5,0.50696093]
[1757600656074,0.3719,4410.9,4410.6,0.50696093]
[1757600656276,0.1447,4411.0,4410.7,0.50696093]
[1757600656482,0.1447,4411.0,4409.9,40.8]
[1757600656483,0.3719,4410.9,4410.8,0.50696093]
[1757600658481,0.24432397,4410.9,4410.8,0.50696093]
[1757600661380,0.24432397,4410.9,4410.8,0.50226647]
[1757600663978,0.3719,4410.8,4409.3,41.1651]
[1757600664184,0.3719,4410.4,4409.3,0.3651]
[1757600664480,0.4689,4410.4,4409.3,0.3651]
[1757600664678,0.4689,4410.4,4409.3,40.8]
[1757600664874,0.4689,4410.4,4409.6,0.3651]
[1757600665279,0.3719,4410.4,4409.6,0.3651]
[1757600665486,0.4259,4410.9,4409.6,0.3651]
[1757600665883,0.3719,4410.9,4409.6,0.3651]
[1757600666091,0.072,4411.0,4409.6,0.3651]
[1757600666989,0.3719,4411.4,4409.6,0.3651]
[1757600667193,0.3719,4411.2,4409.6,0.3651]
[1757600669694,0.1447,4412.0,4409.6,0.59184]
[1757600669887,0.3567,4411.8,4409.8,0.3875]
[1757600670287,0.3567,4411.8,4410.3,0.3875]
[1757600670485,0.241,4411.7,4410.3,0.3875]
[1757600670991,0.3567,4411.8,4410.3,0.3875]
[1757600671188,0.5977,4411.8,4410.3,0.3875]
[1757600671585,0.1447,4412.5,4410.6,0.3875]
[1757600671787,0.1447,4412.5,4410.9,0.3875]
[1757600671990,0.1447,4412.5,4411.0,0.1513]
[1757600672292,0.5977,4413.1,4411.2,0.3875]
[1757600672489,0.58335001,4412.9,4411.2,0.3875]
[1757600672691,0.58335001,4412.9,4410.6,0.3875]
[1757600672997,0.18626144,4413.5,4410.6,0.3875]
[1757600672998,0.3567,4412.7,4410.6,0.3875]
[1757600673485,0.3567,4412.7,4410.8,0.3875]
[1757600673687,0.3567,4412.7,4411.0,0.1513]
[1757600673883,0.3567,4412.7,4411.1,0.3875]
[1757600675594,0.3567,4412.7,4411.0,0.3923]
[1757600675794,0.3567,4412.7,4411.1,0.3875]
[1757600675990,0.3567,4412.7,4411.2,0.31677377]
[1757600676191,0.3567,4412.9,4411.3,0.70427377]
[1757600676398,0.3567,4412.9,4411.4,0.31677377]
[1757600676590,0.3567,4412.9,4411.5,0.31677377]
[1757600676788,0.3567,4411.9,4411.6,0.31677377]
[1757600676989,0.1468,4412.0,4411.7,0.31677377]
[1757600677197,0.3567,4411.9,4411.8,0.31677377]
[1757600678905,0.2688,4412.5,4411.8,0.70427377]
[1757600679096,0.5014,4413.0,4412.1,0.3875]
[1757600679297,0.241,4412.8,4412.3,0.3875]
[1757600679495,0.5977,4412.8,4412.4,0.31677377]
[1757600679802,0.3567,4413.4,4412.6,0.3875]
[1757600679997,0.3567,4413.4,4412.7,0.31677377]
[1757600680304,0.1468,4413.0,4412.8,0.31677377]
[1757600680504,0.5035,4413.0,4412.9,0.31677377]
[1757600680909,4.5035,4413.0,4412.9,0.31677377]
[1757600681106,0.3567,4413.0,4412.9,0.31677377]
[1757600681403,0.3878,4413.5,4412.9,0.70427377]
[1757600681599,0.3567,4413.4,4413.0,0.31677377]
[1757600681796,0.3567,4413.4,4413.2,0.3875]
[1757600681993,0.3567,4413.4,4412.5,0.1513]
[1757600681994,0.3567,4413.4,4413.3,0.70427377]
[1757600682300,32.905,4413.8,4413.3,0.70427377]
[1757600682507,0.3567,4413.7,4413.4,0.31677377]
[1757600682702,32.905,4413.8,4413.5,0.31677377]
[1757600682898,0.3567,4413.7,4413.6,0.31677377]
[1757600683103,0.88941388,4413.7,4412.0,0.1513]
[1757600683405,0.3567,4413.4,4412.0,0.1513]
[1757600683803,0.1103,4413.5,4412.0,0.1513]
[1757600683804,0.53269863,4413.3,4412.0,0.1513]
[1757600683998,0.3567,4413.2,4412.0,0.1513]
[1757600684808,0.3567,4413.2,4411.9,0.3875]
[1757600685502,0.22663001,4413.1,4411.9,0.3875]
[1757600685700,1.27724485,4413.0,4411.4,0.3875]
[1757600685902,0.5327164,4412.9,4411.4,0.3875]
[1757600686205,1.11606641,4412.8,4411.4,0.3875]
[1757600686403,0.3567,4412.4,4411.4,0.3875]
[1757600686605,0.3567,4412.4,4411.6,0.3875]
[1757600687201,0.241,4412.3,4411.6,0.3875]
[1757600689804,0.3567,4412.4,4411.6,0.3875]
[1757600690004,0.241,4412.2,4411.6,0.3875]
[1757600690610,0.3567,4412.4,4411.6,0.3875]
[1757600690903,0.102,4412.1,4411.6,0.3875]
[1757600691497,0.102,4412.1,4411.5,0.1513]
[1757600691700,0.3567,4412.9,4411.6,0.3875]
[1757600691907,0.241,4412.8,4411.6,0.3875]
[1757600692112,0.3567,4413.2,4411.6,0.3875]
[1757600692410,0.241,4413.1,4411.6,0.3875]
[1757600692608,0.4961,4413.0,4411.6,0.3875]
[1757600692810,0.4961,4413.0,4411.8,0.3875]
[1757600694413,0.53230053,4412.9,4411.8,0.3875]
[1757600694614,0.88900053,4412.8,4411.8,0.3875]
[1757600694820,0.241,4412.7,4411.8,0.3875]
[1757600695318,0.3567,4413.2,4411.8,0.3875]
[1757600695319,0.241,4412.9,4411.8,0.3875]
[1757600697111,0.5977,4412.9,4411.8,0.3875]
[1757600698321,0.3567,4412.9,4411.8,0.3875]
[1757600698521,0.241,4412.8,4411.8,0.3875]
[1757600698918,32.664,4413.8,4412.5,0.1404]
[1757600698919,0.24,4413.0,4412.5,0.1404]
[1757600699122,0.24,4413.0,4412.6,0.3742]
[1757600699823,0.24,4413.0,4412.5,0.1404]
[1757600700023,0.24,4413.0,4412.6,0.3742]
[1757600700422,0.24,4413.0,4412.5,0.1404]
[1757600700813,0.24,4413.0,4412.6,0.3742]
[1757600701528,0.24,4413.9,4412.6,0.3742]
[1757600701724,0.3824,4413.8,4412.7,0.3742]
[1757600703822,0.3824,4413.4,4412.2,0.3742]
[1757600704016,0.3824,4413.2,4412.2,0.3742]
[1757600704714,0.3824,4413.0,4411.8,0.3742]
[1757600704917,0.3824,4412.8,4411.8,0.3742]
[1757600705124,0.3824,4412.8,4411.8,1.98977649]
[1757600705422,0.4644,4412.8,4412.1,0.3742]
[1757600710729,0.4943,4412.8,4412.7,0.8693]
[1757600710930,0.24,4412.8,4412.7,0.8693]
[1757600711225,0.24,4413.1,4413.0,0.6355]
[1757600711429,0.4943,4413.1,4413.0,1.0097]
[1757600711623,1.127,4413.1,4412.5,0.1404]
[1757600711931,1.127,4413.1,4413.0,0.2575]
[1757600712122,0.887,4412.8,4412.1,0.3742]
[1757600712322,0.2543,4411.9,4411.8,0.6317]
[1757600712628,0.36604,4413.0,4411.8,2.11067649]
[1757600712629,0.1394,4413.0,4411.8,2.11067649]
[1757600712822,0.2543,4412.2,4412.1,0.6317]
[1757600713023,0.2543,4412.2,4412.1,0.8693]
[1757600713223,0.2543,4412.3,4412.2,0.6317]
[1757600713524,0.887,4412.3,4412.2,0.6317]
[1757600714220,0.5046,4412.3,4412.2,0.8693]
[1757600714429,0.239,4412.6,4412.3,0.3742]
[1757600714641,0.4933,4412.6,4412.5,0.8693]
[1757600714928,1.126,4412.6,4412.5,0.8693]
[1757600715129,1.126,4412.6,4412.5,0.6317]
[1757600715326,0.7436,4412.6,4412.0,0.1404]
[1757600715527,1.126,4412.6,4412.1,0.3742]
[1757600715826,0.7436,4412.6,4412.0,0.1404]
[1757600716126,0.887,4412.1,4412.0,0.6317]
[1757600716632,0.5046,4412.1,4412.0,1.0097]
[1757600716828,0.3824,4412.5,4412.1,0.3742]
[1757600717031,0.887,4412.2,4412.1,0.3742]
[1757600717531,0.887,4412.2,4412.1,0.6317]
[1757600717832,0.5046,4412.2,4412.1,0.8693]
[1757600718331,0.2543,4412.2,4412.1,0.8693]
[1757600718726,0.5046,4412.2,4412.1,0.8693]
[1757600718926,0.3824,4412.1,4411.5,2.14107649]
[1757600719234,0.887,4411.6,4411.5,0.6317]
[1757600719736,0.5046,4411.6,4411.3,0.3742]
[1757600720036,0.5046,4411.3,4411.1,1.61557649]
[1757600720231,0.3824,4411.2,4411.0,1.61557649]
[1757600720535,0.887,4410.8,4410.4,1.61557649]
[1757600720730,0.887,4410.5,4410.4,0.6317]
[1757600721930,0.112,4410.8,4410.4,0.8693]
[1757600722232,0.4933,4410.8,4410.7,0.6317]
[1757600722631,0.7436,4410.8,4410.7,0.6317]
[1757600722828,1.126,4410.8,4410.7,0.6317]
[1757600723136,0.887,4410.8,4410.7,0.6317]
[1757600723335,1.126,4410.8,4410.7,0.6317]
[1757600723530,1.126,4410.8,4410.5,0.1404]
[1757600723738,0.5046,4410.6,4410.5,0.6317]
[1757600723937,0.887,4410.6,4410.5,0.6317]
[1757600724233,0.239,4411.5,4410.6,0.3742]
[1757600724629,0.3824,4411.4,4410.6,0.3742]
[1757600724834,0.887,4411.4,4411.3,0.6317]
[1757600725035,0.5292,4412.5,4411.6,0.3742]
[1757600725236,0.3824,4412.3,4411.6,0.3742]
[1757600725436,0.239,4412.3,4412.0,0.1404]
[1757600725738,0.239,4412.3,4412.1,0.3742]
[1757600725940,0.6214,4412.3,4412.1,0.3742]
[1757600726129,0.3824,4412.2,4411.5,0.1404]
[1757600726433,0.3824,4412.2,4411.6,0.3742]
[1757600726934,0.3824,4412.2,4411.0,1.75597649]
[1757600727135,0.5292,4412.0,4411.1,0.3742]
[1757600727525,0.5292,4412.0,4410.6,0.3592]
[1757600727724,0.343,4411.8,4410.6,0.3592]
[1757600728337,0.1468,4412.0,4410.6,0.3592]
[1757600728338,0.343,4411.4,4410.6,0.3592]
[1757600728539,0.343,4411.2,4410.6,0.3592]
[1757600729235,0.343,4411.2,4410.1,0.3592]
[1757600729536,0.343,4410.9,4409.7,0.3592]
[1757600730139,0.343,4410.7,4409.7,0.3592]
[1757600731636,0.1389,4410.5,4409.7,0.3592]
[1757600731841,0.583,4410.4,4409.7,0.3592]
[1757600733934,0.583,4410.4,4407.5,0.1445]
[1757600733935,0.4819,4408.5,4407.5,0.1445]
[1757600734135,0.343,4408.3,4407.5,0.1445]
[1757600734738,0.343,4408.3,4407.6,0.3592]
[1757600735435,0.24,4408.2,4408.0,0.1445]
[1757600735739,0.24,4408.2,4408.1,0.3592]
[1757600736042,0.24,4408.5,4408.0,0.1445]
[1757600736339,0.24,4408.4,4408.1,0.3592]
[1757600736744,0.24,4408.4,4408.0,0.1445]
[1757600736933,0.24,4408.4,4408.1,0.3592]
[1757600737134,0.343,4408.3,4407.6,0.3592]
[1757600737442,0.2268,4408.2,4407.6,0.3592]
[1757600739341,0.24,4408.1,4408.0,0.1445]
[1757600739537,0.2268,4408.2,4408.1,0.3592]
[1757600739836,0.4658,4408.2,4408.1,0.3592]
[1757600741340,0.2268,4408.2,4408.1,0.3592]
[1757600744132,0.4658,4408.2,4408.1,0.3592]
[1757600745431,0.2268,4408.2,4408.1,0.3592]
[1757600745634,0.4658,4408.2,4408.1,0.3592]
[1757600746740,0.343,4408.1,4407.4,0.3592]
[1757600746938,0.1295,4408.0,4407.4,0.3592]
[1757600747138,0.343,4407.9,4407.4,0.3592]
[1757600747445,0.343,4407.9,4407.1,0.3592]
[1757600747741,0.2268,4408.2,4408.0,0.1445]
[1757600748047,0.239,4408.1,4408.0,0.5037]
[1757600748437,0.2268,4408.2,4408.1,0.3592]
[1757600748836,0.239,4409.3,4408.2,0.3592]
[1757600749349,0.239,4409.3,4408.6,0.3592]
[1757600749845,32.675,4410.6,4409.1,0.3592]
[1757600750037,0.582,4410.4,4409.1,0.3592]
[1757600750343,0.80877,4410.4,4409.1,0.3592]
[1757600750549,0.582,4410.4,4409.1,0.3592]
[1757600751839,0.343,4410.2,4408.6,0.3592]
[1757600752040,0.343,4409.9,4408.6,0.3592]
[1757600752342,0.343,4409.7,4408.6,0.3592]
[1757600753742,1.60485366,4411.3,4408.6,0.3592]
[1757600753743,0.343,4410.4,4408.6,0.3592]
[1757600753947,0.80138885,4410.3,4408.6,0.3592]
[1757600754148,0.90538885,4410.2,4408.6,0.3592]
[1757600754446,0.4647,4410.0,4408.6,0.3592]
[1757600755150,0.239,4409.9,4408.6,0.3592]
[1757600755346,0.239,4409.9,4408.7,0.22677999]
[1757600755547,0.239,4409.9,4409.6,0.3592]
[1757600755946,0.239,4409.9,4409.5,0.1445]
[1757600756845,0.239,4409.9,4409.6,0.3592]
[1757600757251,0.239,4409.9,4409.6,0.3376]
[1757600757442,0.239,4409.9,4409.5,0.1445]
[1757600757842,0.239,4409.9,4409.0,0.1445]
[1757600757843,0.3575,4409.8,4409.0,0.4821]
[1757600758251,0.3575,4409.8,4409.1,0.3376]
[1757600761255,0.239,4409.7,4409.5,0.1478]
[1757600761456,0.239,4409.8,4409.6,0.3376]
[1757600762351,0.239,4409.8,4409.5,0.1478]
[1757600762846,0.239,4409.8,4409.6,0.3376]
[1757600763051,0.3575,4410.9,4410.5,0.1478]
[1757600763249,0.56494134,4410.8,4410.5,0.1478]
[1757600763451,0.5965,4410.9,4410.5,0.1478]
[1757600764355,0.5965,4410.9,4410.6,0.3376]
[1757600764556,0.239,4410.9,4410.6,0.3376]
[1757600764852,0.3575,4410.8,4410.6,0.3376]
[1757600765053,0.3575,4410.8,4410.1,0.3376]
[1757600765647,0.3575,4411.2,4410.2,0.22673]
[1757600765953,0.239,4411.1,4411.0,0.4854]
[1757600767254,32.8015,4412.0,4411.1,0.3376]
[1757600767255,32.672,4412.0,4411.1,0.3376]
[1757600767451,32.911,4412.0,4411.1,0.3376]
[1757600768464,32.911,4412.0,4411.5,0.1478]
[1757600768650,32.911,4412.0,4411.6,0.3376]
[1757600769157,32.911,4412.0,4411.5,0.1478]
[1757600769359,33.2685,4412.0,4411.6,0.3376]
[1757600769664,0.3575,4411.9,4411.6,0.3376]
[1757600769850,0.3575,4411.9,4411.5,0.1478]
[1757600770049,32.911,4412.0,4411.5,0.1478]
[1757600770245,33.2685,4412.0,4411.5,0.1478]
[1757600770654,33.2685,4412.0,4411.6,0.3376]
[1757600770859,0.3575,4411.9,4411.6,0.3376]
[1757600771061,0.3575,4411.9,4411.5,0.1478]
[1757600771358,0.3575,4411.9,4411.6,0.3376]
[1757600771665,32.911,4412.0,4411.5,0.1478]
[1757600771957,32.911,4412.0,4411.6,0.3376]
[1757600772158,0.239,4412.0,4411.6,0.3376]
[1757600774254,0.239,4412.0,4411.7,40.8]
[1757600774459,0.239,4412.4,4411.8,0.3376]
[1757600776360,0.5965,4412.4,4411.8,0.3376]
[1757600777668,0.239,4412.5,4412.1,0.3376]
[1757600777862,0.7026,4412.5,4412.4,0.5796]
[1757600778053,1.0601,4412.5,4412.4,0.5796]
[1757600778959,1.0601,4412.5,4412.0,0.1478]
[1757600779268,1.0601,4412.5,4411.7,40.8]
[1757600779269,0.4636,4411.9,4411.8,0.5796]
[1757600779459,0.2364,4411.9,4411.8,0.8273]
[1757600779762,0.239,4412.5,4412.0,0.1478]
[1757600779961,0.5965,4412.5,4412.0,0.1478]
[1757600780355,0.239,4412.5,4412.2,0.3376]
[1757600780662,0.239,4412.9,4412.5,0.1478]
[1757600780966,0.4754,4412.9,4412.8,0.8273]
[1757600781367,0.7026,4412.9,4412.8,0.8273]
[1757600781670,0.2364,4412.2,4412.1,0.8273]
[1757600782060,0.239,4413.2,4412.2,0.3376]
[1757600782261,0.239,4413.2,4412.0,0.1478]
[1757600782262,0.7026,4413.2,4413.1,0.242]
[1757600782469,0.7026,4413.2,4413.1,0.5796]
[1757600782765,1.0601,4413.2,4413.1,0.5796]
[1757600782965,1.0601,4413.2,4412.5,0.4854]
[1757600783766,0.4636,4412.6,4412.5,0.5796]
[1757600783965,0.8211,4412.6,4412.5,0.5796]
[1757600784468,0.4636,4413.2,4413.1,0.5796]
[1757600784665,32.663,4413.4,4413.1,0.8273]
[1757600784858,0.3575,4414.4,4413.2,0.3376]
[1757600785059,0.3575,4414.2,4413.2,0.3376]
[1757600786660,0.8211,4413.3,4412.6,0.3376]
[1757600786861,0.239,4413.6,4413.3,0.3376]
[1757600787061,0.8211,4413.4,4413.3,0.5796]
[1757600788259,0.472,4413.2,4413.1,0.3622]
[1757600788473,0.8399,4413.2,4413.1,0.6072]
[1757600789178,0.472,4413.2,4413.1,0.6072]
[1757600789971,0.472,4413.2,4413.1,0.8305]
[1757600791374,0.6069,4413.6,4413.1,0.8305]
[1757600791678,0.4709,4413.6,4413.5,0.9748]
[1757600791876,1.0789,4413.6,4413.0,0.5065]
[1757600792071,0.472,4413.1,4413.0,0.7515]
[1757600792276,0.472,4413.1,4413.0,0.9748]
[1757600793474,0.2319,4413.1,4413.0,0.9748]
[1757600793667,0.3679,4413.5,4413.1,0.3622]
[1757600793877,0.2319,4413.6,4413.5,0.9748]
[1757600794284,0.472,4413.6,4413.5,0.9748]
[1757600794480,0.8399,4413.6,4413.5,0.9748]
[1757600794976,0.8399,4413.6,4413.5,0.8305]
[1757600795176,0.8399,4413.6,4413.5,0.6072]
[1757600795372,0.8399,4413.6,4413.1,0.3622]
[1757600795579,0.2319,4413.2,4413.1,0.4683]
[1757600795776,0.2319,4413.2,4413.1,0.8305]
[1757600796175,0.3679,4413.6,4413.2,0.3622]
[1757600796371,0.8399,4413.6,4413.0,0.1443]
[1757600796572,0.472,4413.1,4413.0,0.9748]
[1757600796881,0.8399,4413.1,4412.7,0.3622]
[1757600797077,0.3679,4412.7,4412.3,0.3622]
[1757600797383,0.8399,4412.4,4412.3,0.3622]
[1757600797581,0.168,4412.8,4412.3,0.4683]
[1757600797771,1.0079,4412.8,4412.7,0.245]
[1757600797973,1.0079,4412.8,4412.7,0.6072]
[1757600798180,1.57153183,4412.8,4412.7,0.6072]
[1757600798576,0.73163183,4412.8,4412.7,0.8305]
[1757600798885,1.20363183,4412.8,4412.7,0.8305]
[1757600799079,1.57153183,4412.8,4412.7,0.8305]
[1757600799279,1.57163168,4412.8,4412.7,0.8305]
[1757600800180,1.0079,4412.8,4412.7,0.8305]
[1757600800387,1.57182822,4412.8,4412.7,0.6072]
[1757600801286,1.57198341,4412.8,4412.7,0.6072]
[1757600802195,0.64,4412.8,4412.7,0.8305]
[1757600802491,0.168,4412.8,4412.7,0.8305]
[1757600802689,0.64,4412.8,4412.5,0.3622]
[1757600802990,0.638,4413.6,4413.5,0.245]
[1757600803290,1.56981016,4413.6,4413.5,0.245]
[1757600803489,0.3679,4413.5,4413.3,0.3622]
[1757600803688,0.2319,4412.6,4412.5,0.6126]
[1757600804293,0.2319,4412.6,4412.5,0.9748]
[1757600804491,0.8399,4412.6,4412.5,0.8305]
[1757600804994,0.5998,4413.1,4413.0,0.4683]
[1757600805186,1.16404805,4413.1,4413.0,0.8305]
[1757600805388,0.2401,4412.6,4412.5,0.1443]
[1757600805584,0.472,4412.6,4412.5,0.9748]
[1757600805784,0.3679,4413.0,4412.5,0.1443]
[1757600805990,1.40434986,4412.9,4412.8,0.6072]
[1757600806198,1.03644986,4412.9,4412.8,0.8305]
[1757600806701,1.40434986,4412.9,4412.8,0.6072]
[1757600807002,0.3679,4412.8,4412.6,0.3622]
[1757600807200,0.4867,4413.5,4412.7,0.3622]
[1757600807502,0.3679,4413.4,4413.0,0.1443]
[1757600807702,0.3679,4413.4,4413.0,0.9748]
[1757600807901,0.3679,4413.4,4413.1,0.3622]
[1757600807902,0.2319,4413.2,4413.1,0.3622]
[1757600808101,0.2319,4413.2,4413.1,0.8305]
[1757600808300,0.3679,4414.4,4413.2,0.3622]
[1757600808499,0.56483854,4414.3,4413.2,0.3622]
[1757600808697,0.56483854,4414.2,4413.2,0.3622]
[1757600808898,1.40473854,4414.1,4414.0,0.6072]
[1757600809802,1.40473854,4414.1,4413.5,0.1443]
[1757600810005,0.2319,4413.6,4413.5,0.9748]
[1757600810194,0.8399,4413.6,4413.1,0.3622]
[1757600810498,0.472,4413.1,4413.0,0.9748]
[1757600812901,0.472,4412.7,4412.6,0.245]
[1757600813195,0.472,4412.6,4412.0,0.1443]
[1757600813396,0.8399,4412.6,4412.5,0.6072]
[1757600813603,0.083,4412.9,4412.0,0.1443]
[1757600813803,0.2319,4412.2,4412.1,0.8305]
[1757600815402,0.1188,4413.5,4412.2,0.3622]
[1757600815600,0.472,4413.0,4412.9,0.8305]
[1757600815799,0.2319,4413.0,4412.9,0.8305]
[1757600816000,0.2829,4413.2,4413.1,0.8305]
[1757600816302,0.523,4413.2,4413.1,0.8305]
[1757600816704,0.8909,4413.2,4413.1,0.245]
[1757600817198,0.523,4413.2,4412.5,0.1443]
[1757600817398,0.7795,4412.7,4412.6,0.5447]
[1757600817604,0.7795,4412.7,4412.0,0.1443]
[1757600817605,0.7795,4412.7,4412.1,0.3268]
[1757600818100,0.7795,4412.7,4411.6,40.8]
[1757600818300,0.7795,4412.7,4411.6,0.3268]
[1757600818805,1.00615001,4412.7,4411.6,0.3268]
[1757600818998,0.7795,4412.7,4411.6,0.3268]
[1757600819200,0.8903041,4412.6,4411.2,0.3268]
[1757600819400,0.7795,4411.3,4411.2,0.7856]
[1757600819595,0.4503,4411.3,4411.2,0.7856]
[1757600819799,0.3292,4411.7,4411.3,0.3268]
[1757600820001,0.5586,4411.7,4411.6,0.2179]
[1757600820207,0.3292,4411.6,4410.6,2.35891915]
[1757600820400,0.7795,4410.7,4410.2,0.3268]
[1757600820796,0.7795,4410.7,4410.1,0.3268]
[1757600821710,0.3292,4411.4,4410.7,0.3268]
[1757600822001,0.5672,4411.9,4411.1,0.3268]
[1757600822394,0.7795,4411.9,4411.8,0.2179]
[1757600822609,0.136,4412.2,4411.9,0.3268]
[1757600822805,0.5863,4412.2,4412.1,0.2179]
[1757600823101,0.5863,4412.2,4412.1,0.5447]
[1757600823301,0.4674,4412.5,4412.4,0.4588]
[1757600823602,0.4674,4412.5,4412.4,0.7856]
[1757600824001,0.238,4412.5,4412.4,0.7856]
[1757600824408,0.3292,4412.8,4412.5,0.1394]
[1757600824706,33.4265,4413.0,4412.9,0.2179]
[1757600824901,33.3353,4413.0,4412.5,0.1394]
[1757600825109,0.7795,4412.7,4412.6,0.5447]
[1757600825309,0.4503,4412.7,4411.7,0.3268]
[1757600825605,0.2294,4411.8,4411.7,0.5447]
[1757600825810,0.7795,4411.8,4411.7,0.5447]
[1757600826506,0.4503,4411.8,4411.7,0.7856]
[1757600826809,0.2294,4411.9,4411.8,0.7856]